[Event "CCT Chessable Masters Place D-II 2024"]
[Site "Online"]
[Date "2024.02.01"]
[Round "1"]
[White "Grischuk, Alexander"]
[Black "Sethu Madhav Upadhyayula"]
[Result "1-0"]
[ECO "D02"]
[WhiteElo "2732"]
[BlackElo "1502"]
[Annotator "RC"]
[PlyCount "191"]
[EventDate "2024.01.12"]
[EventType "k.o."]
[EventCountry "NET"]
[SourceTitle "playchess.com"]
[Source "ChessBase"]
[SourceQuality "1"]
[TimeControl "600+2"]

1. d4 {[%emt 0:00:04]} d5 {[%emt 0:00:05]} 2. Nf3 {[%emt 0:00:04]} Nf6 {[%emt 0:02:32]} 3. Bf4 {[%emt 0:00:03]} e6 {[%emt 0:00:02]} 4. e3 {[%emt 0:00:04]} c5 {[%emt 0:00:03]} 5. c3 {[%emt 0:00:03]} Nc6 {[%emt 0:00:02]} 6. Nbd2 {[%emt 0:00:04]} cxd4 {[%emt 0:00:03]} 7. exd4 {[%emt 0:00:02]} Nh5 {[%emt 0:00:02]} 8. Be3 {[%emt 0:00:03]} Bd6 {[%emt 0:00:03]} 9. Ne5 {[%emt 0:00:03]} Nf6 {[%emt 0:00:05]} 10. f4 {[%emt 0:00:03]} Qb6 {[%emt 0:00:04]} 11. a4 {[%emt 0:00:03]} O-O {[%emt 0:00:03]} 12. Qc2 {[%emt 0:00:04]} Bd7 {[%emt 0:01:09]} 13. Bd3 {[%emt 0:00:12]} Bxe5 {[%emt 0:00:43]} 14. a5 {[%emt 0:00:22]} Qc7 {[%emt 0:00:32]} 15. fxe5 {[%emt 0:00:29]} Ng4 {[%emt 0:00:03]} 16. Bf4 {[%emt 0:03:22]} f5 {[%emt 0:00:32]} 17. O-O {[%emt 0:00:09]} Nxa5 {[%emt 0:00:12]} 18. Nf3 {[%emt 0:00:29]} Nc4 {[%emt 0:00:14]} 19. Qc1 {[%emt 0:00:05]} Na5 {[%emt 0:00:49]} 20. h3 {[%emt 0:00:44]} Nb3 {[%emt 0:00:04]} 21. Qd1 {[%emt 0:00:03]} Nxa1 {[%emt 0:00:09]} 22. hxg4 {[%emt 0:00:03]} fxg4 {[%emt 0:00:19]} 23. Ng5 {[%emt 0:01:34]} h6 {[%emt 0:00:05]} 24. Nh7 {[%emt 0:00:02]} Rf5 {[%emt 0:00:23]} 25. Bxf5 {[%emt 0:00:10]} exf5 {[%emt 0:00:04]} 26. e6 {[%emt 0:00:15]} Qc6 {[%emt 0:00:08]} 27. Nf6+ {[%emt 0:00:05]} gxf6 {[%emt 0:00:07]} 28. exd7 {[%emt 0:00:03]} Qxd7 {[%emt 0:00:07]} 29. Qxa1 {[%emt 0:00:06]} h5 {[%emt 0:00:03]} 30. Qe1 {[%emt 0:00:11]} Kg7 {[%emt 0:00:06]} 31. Bc1 {[%emt 0:00:18]} Kg6 {[%emt 0:00:13]} 32. Qe3 {[%emt 0:00:12]} Rh8 {[%emt 0:00:04]} 33. Re1 {[%emt 0:00:11]} h4 {[%emt 0:00:29]} 34. Qe7 {[%emt 0:00:03]} Qxe7 {[%emt 0:00:27]} 35. Rxe7 {[%emt 0:00:02]} h3 {[%emt 0:00:03]} 36. Bf4 {[%emt 0:00:14]} hxg2 {[%emt 0:00:07]} 37. Kxg2 {[%emt 0:00:03]} Rh3 {[%emt 0:00:05]} 38. Bg3 {[%emt 0:00:04]} b5 {[%emt 0:00:08]} 39. Rxa7 {[%emt 0:00:08]} f4 {[%emt 0:00:05]} 40. Bxf4 {[%emt 0:00:03]} Rf3 {[%emt 0:00:03]} 41. Bc1 {[%emt 0:00:07]} Kf5 {[%emt 0:00:05]} 42. Re7 {[%emt 0:00:08]} Rd3 {[%emt 0:00:04]} 43. Re1 {[%emt 0:00:05]} b4 {[%emt 0:00:03]} 44. cxb4 {[%emt 0:00:15]} Rxd4 {[%emt 0:00:03]} 45. b3 {[%emt 0:00:07]} Rxb4 {[%emt 0:00:03]} 46. Re3 {[%emt 0:00:02]} d4 {[%emt 0:00:03]} 47. Rg3 {[%emt 0:00:03]} Ke5 {[%emt 0:00:05]} 48. Rxg4 {[%emt 0:00:04]} Rxb3 {[%emt 0:00:03]} 49. Kf2 {[%emt 0:00:02]} f5 {[%emt 0:00:03]} 50. Rg8 {[%emt 0:00:04]} Rc3 {[%emt 0:00:03]} 51. Bd2 {[%emt 0:00:03]} Rc2 {[%emt 0:00:02]} 52. Ke2 {[%emt 0:00:02]} Rc6 {[%emt 0:00:03]} 53. Kd3 {[%emt 0:00:03]} Ra6 {[%emt 0:00:03]} 54. Re8+ {[%emt 0:00:03]} Kf6 {[%emt 0:00:03]} 55. Rd8 {[%emt 0:00:03]} Ra3+ {[%emt 0:00:03]} 56. Kxd4 {[%emt 0:00:02]} Ra4+ {[%emt 0:00:02]} 57. Kd3 {[%emt 0:00:04]} Re4 {[%emt 0:00:02]} 58. Bc3+ {[%emt 0:00:02]} Kf7 {[%emt 0:00:04]} 59. Ra8 {[%emt 0:00:02]} Re6 {[%emt 0:00:04]} 60. Ra5 {[%emt 0:00:03]} Kg6 {[%emt 0:00:03]} 61. Bd4 {[%emt 0:00:02]} Re4 {[%emt 0:00:03]} 62. Ra8 {[%emt 0:00:02]} Kg5 {[%emt 0:00:03]} 63. Rg8+ {[%emt 0:00:03]} Kh6 {[%emt 0:00:03]} 64. Bc3 {[%emt 0:00:02]} Kh7 {[%emt 0:00:03]} 65. Rg7+ {[%emt 0:00:03]} Kh6 {[%emt 0:00:03]} 66. Rg1 {[%emt 0:00:02]} Kh7 {[%emt 0:00:04]} 67. Bd2 {[%emt 0:00:02]} Rg4 {[%emt 0:00:03]} 68. Rf1 {[%emt 0:00:03]} Kg6 {[%emt 0:00:02]} 69. Be3 {[%emt 0:00:02]} Rg3 {[%emt 0:00:03]} 70. Kd4 {[%emt 0:00:03]} Rg4+ {[%emt 0:00:02]} 71. Kd5 {[%emt 0:00:03]} Re4 {[%emt 0:00:02]} 72. Bd4 {[%emt 0:00:02]} Rg4 {[%emt 0:00:03]} 73. Ra1 {[%emt 0:00:02]} f4 {[%emt 0:00:03]} 74. Ke4 {[%emt 0:00:04]} f3+ {[%emt 0:00:03]} 75. Kd3 {[%emt 0:00:02]} Rf4 {[%emt 0:00:03]} 76. Bf2 {[%emt 0:00:03]} Kf5 {[%emt 0:00:03]} 77. Ke3 {[%emt 0:00:02]} Kg4 {[%emt 0:00:03]} 78. Rg1+ {[%emt 0:00:03]} Kf5 {[%emt 0:00:03]} 79. Rb1 {[%emt 0:00:02]} Re4+ {[%emt 0:00:02]} 80. Kxf3 {[%emt 0:00:04]} Rf4+ {[%emt 0:00:02]} 81. Ke2 {[%emt 0:00:02]} Rg4 {[%emt 0:00:03]} 82. Be3 {[%emt 0:00:02]} Rg2+ {[%emt 0:00:03]} 83. Kd3 {[%emt 0:00:02]} Rg6 {[%emt 0:00:02]} 84. Rb5+ {[%emt 0:00:02]} Ke6 {[%emt 0:00:03]} 85. Rb4 {[%emt 0:00:02]} Kf5 {[%emt 0:00:02]} 86. Ke2 {[%emt 0:00:03]} Ke6 {[%emt 0:00:02]} 87. Re4+ {[%emt 0:00:02]} Kf7 {[%emt 0:00:02]} 88. Rd4 {[%emt 0:00:02]} Rf6 {[%emt 0:00:03]} 89. Rh4 {[%emt 0:00:02]} Kg6 {[%emt 0:00:02]} 90. Rh3 {[%emt 0:00:03]} Rf5 {[%emt 0:00:02]} 91. Rg3+ {[%emt 0:00:03]} Kf6 {[%emt 0:00:02]} 92. Rg2 {[%emt 0:00:02]} Ke6 {[%emt 0:00:02]} 93. Bd4 {[%emt 0:00:03]} Rf6 {[%emt 0:00:02]} 94. Kd3 {[%emt 0:00:02]} Rf5 {[%emt 0:00:03]} 95. Be3 {[%emt 0:00:02]} Rf3 {[%emt 0:00:02]} 96. Rg4 {[%emt 0:00:03]} 1-0

[Event "CCT Chessable Masters Place D-II 2024"]
[Site "Online"]
[Date "2024.02.01"]
[Round "1"]
[White "KuzubovYuriy"]
[Black "Micki-taryan"]
[Result "0-1"]
[ECO "D35"]
[WhiteElo "2701"]
[BlackElo "2623"]
[Annotator "TA"]
[PlyCount "88"]
[EventDate "2024.01.12"]
[EventType "k.o."]
[EventCountry "NET"]
[SourceTitle "playchess.com"]
[Source "ChessBase"]
[SourceQuality "1"]
[TimeControl "600+2"]

{[%evp 27,87,0,0,0,0,0,50,54,55,70,54,0,0,0,11,16,34,-13,-24,-82,-88,-173,-162,-175,-161,-159,-155,-187,-197,-196,-199,-191,-197,-193,-192,-199,-59,-41,-70,-70,0,0,0,-170,-159,-177,-157,-380,-370,-310,-362,-358,-347,-639,-615,-784,-742,-981,-906,-5836,-5704,-29999]} 1. d4 {[%emt 0:00:03]} Nf6 {[%emt 0:00:05]} 2. c4 {[%emt 0:00:01]} e6 {[%emt 0:00:01]} 3. Nf3 {[%emt 0:00:01]} d5 {[%emt 0:00:01]} 4. Nc3 {[%emt 0:00:02]} Nbd7 {[%emt 0:00:01]} 5. cxd5 {[%emt 0:00:04]} exd5 {[%emt 0:00:02]} 6. Bg5 {[%emt 0:00:01]} c6 {[%emt 0:00:05]} 7. e3 {[%emt 0:00:01]} Be7 {[%emt 0:00:01]} 8. Bd3 {[%emt 0:00:04]} h6 {[%emt 0:00:04]} 9. Bf4 {[%emt 0:00:08]} Nh5 {[%emt 0:00:09] D35: Queen's Gambit Declined: Exchange Variation.} 10. Qc2 {[%emt 0:00:11]} Nxf4 {[%emt 0:00:27]} 11. exf4 {[%emt 0:00:03]} Nf6 {[%emt 0:00:02]} 12. Ne5 {[%emt 0:00:09]} O-O {[%emt 0:00:05]} 13. O-O-O {[%emt 0:00:03]} Bb4 $146 {[%emt 0:00:32]} ({Predecessor:} 13... Bd7 14. f5 c5 15. dxc5 Bxc5 16. Kb1 Rc8 17. Nf3 Qb6 18. Rhf1 Bb4 19. Qb3 Bxc3 20. Qxb6 axb6 21. bxc3 Rxc3 {1-0 Krishna Teja,N (2340)-Joensson,J (2083) Rilton Cup 48th 2018 (1)}) 14. Kb1 {[%emt 0:00:16]} Bxc3 {[%emt 0:00:28]} 15. Qxc3 {[%emt 0:00:02]} Ne4 $1 {[%emt 0:00:11]} 16. Qc2 {[%emt 0:02:58]} f6 {[%emt 0:00:48]} (16... Qf6 $11) 17. Ng6 $14 {[%emt 0:00:36]} Re8 {[%emt 0:00:01]} 18. f3 {[%emt 0:00:06]} Nd6 {[%emt 0:00:02]} 19. Nh4 {[%emt 0:00:20]} ({Better is} 19. g4 $14) 19... Be6 $11 {[%emt 0:00:34]} 20. g4 {[%emt 0:01:10]} Bf7 {[%emt 0:00:03]} 21. Rhg1 {[%emt 0:00:05]} Nc4 {[%emt 0:00:27]} 22. Bxc4 {[%emt 0:00:41]} (22. Qc1 $14) 22... dxc4 $11 {[%emt 0:00:02]} 23. Qd2 {[%emt 0:00:03]} (23. g5 $1 $11 {remains equal.} hxg5 (23... fxg5 24. fxg5 hxg5 25. Ng6 $15) 24. fxg5) 23... Qd5 $17 {[%emt 0:00:35]} 24. Rg2 {[%emt 0:01:13]} (24. g5 $17 {keeps fighting.} c3 25. bxc3 Qb5+ 26. Qb2 Qxb2+ (26... fxg5 27. Qxb5 cxb5 28. fxg5 $14) 27. Kxb2 Re2+ 28. Kc1 fxg5 (28... Rxa2 29. gxh6 g6 30. Nxg6 $16) (28... Rxh2 29. gxf6 Rxh4 30. Rxg7+ Kf8 31. Rh7 $15) (28... Bxa2 $2 29. gxh6 g5 30. fxg5 $18) 29. fxg5 Rxh2 (29... Bxa2 $2 30. gxh6 Re7 31. Rd2 $18) 30. Nf5) 24... g6 $1 $19 {[%emt 0:01:05]} 25. g5 {[%emt 0:01:36]} hxg5 {[%emt 0:00:15]} 26. fxg5 {[%emt 0:00:05]} f5 $1 {[%emt 0:00:01]} 27. Rf2 {[%emt 0:00:15]} Rad8 {[%emt 0:00:25]} 28. Ng2 {[%emt 0:00:18] [#]} c5 $1 {[%emt 0:00:01]} 29. dxc5 {[%emt 0:00:11]} Qxc5 {[%emt 0:00:02]} 30. Qxd8 {[%emt 0:00:01]} Qxf2 {[%emt 0:00:01]} 31. Qd2 {[%emt 0:00:02]} Re2 {[%emt 0:00:42]} ({Black should play} 31... Qxf3 $19 {White must now prevent ...Re2.} 32. Nf4 Re3 33. Qd8+ Kh7) 32. Qd8+ $15 {[%emt 0:00:01]} Be8 {[%emt 0:00:01]} (32... Re8 $2 33. Qd2 Qxf3 34. Re1 $19) 33. Qd5+ {[%emt 0:00:05]} Bf7 {[%emt 0:00:26]} (33... Kg7 $1 $15 34. Qxb7+ Bf7) 34. Qd8+ $11 {[%emt 0:00:01]} Re8 $2 {[%emt 0:00:00]} (34... Be8 $11 35. Qd5+ Bf7 36. Qd8+) 35. Qd2 $19 {[%emt 0:00:01]} Qxf3 {[%emt 0:00:01]} 36. Nf4 {[%emt 0:00:02]} Qe4+ {[%emt 0:00:37]} 37. Ka1 $2 {[%emt 0:00:01]} (37. Kc1 $17 {was the only chance.}) 37... b5 $19 {[%emt 0:00:01]} 38. Rf1 {[%emt 0:00:04]} a5 {[%emt 0:00:45]} 39. h4 {[%emt 0:00:05]} b4 {[%emt 0:00:03]} 40. h5 $2 {[%emt 0:00:01]} (40. Rc1 Qe3 41. Qxe3 Rxe3 42. Rf1) 40... c3 $1 $19 {[%emt 0:00:42]} (40... gxh5 41. g6 Bxg6 (41... Be6 $2 42. Nxh5 Qe5 43. Qh6 $18) 42. Nxg6 $14) 41. bxc3 {[%emt 0:00:00]} Qc4 {[%emt 0:00:00]} (41... gxh5 42. g6 Bc4 43. Nxh5 $11) 42. Rc1 {[%emt 0:00:03] [#]} bxc3 $1 {[%emt 0:00:00]} ({Inferior is} 42... gxh5 43. g6 Be6 44. cxb4 (44. Nxh5 Rc8 $14) 44... Qxb4 45. Qxb4 axb4 46. Rc7 $16) 43. Rxc3 {[%emt 0:00:07]} Re1+ $1 {[%emt 0:00:02]} 44. Kb2 {[%emt 0:00:03]} Qxa2# {[%emt 0:00:02]} 0-1

[Event "CCT Chessable Masters Place D-II 2024"]
[Site "Online"]
[Date "2024.02.01"]
[Round "1"]
[White "jefferyx"]
[Black "Bortnyk, Oleksandr"]
[Result "1-0"]
[ECO "C41"]
[WhiteElo "2658"]
[BlackElo "2646"]
[Annotator "ChessBase"]
[PlyCount "85"]
[EventDate "2024.01.12"]
[EventType "k.o."]
[EventCountry "NET"]
[SourceTitle "playchess.com"]
[Source "ChessBase"]
[SourceQuality "1"]
[TimeControl "600+2"]

1. e4 {[%emt 0:00:02]} d6 {[%emt 0:00:57]} 2. d4 {[%emt 0:00:03]} Nf6 {[%emt 0:00:02]} 3. Nc3 {[%emt 0:00:00]} e5 {[%emt 0:00:01]} 4. Nf3 {[%emt 0:00:01]} Nbd7 {[%emt 0:00:01]} 5. Bc4 {[%emt 0:00:02]} Be7 {[%emt 0:00:02]} 6. O-O {[%emt 0:00:03]} O-O {[%emt 0:00:01]} 7. a4 {[%emt 0:00:04]} a6 {[%emt 0:00:01]} 8. Re1 {[%emt 0:00:43]} b6 {[%emt 0:00:06]} 9. b3 {[%emt 0:00:59]} Bb7 {[%emt 0:00:05]} 10. Bb2 {[%emt 0:00:01]} c6 {[%emt 0:00:04]} 11. Bd3 {[%emt 0:00:12]} Qc7 {[%emt 0:00:30]} 12. Ne2 {[%emt 0:00:10]} d5 {[%emt 0:02:25]} 13. dxe5 {[%emt 0:00:08]} dxe4 {[%emt 0:00:17]} 14. Ng3 {[%emt 0:01:45]} exd3 {[%emt 0:00:45]} 15. Nf5 {[%emt 0:00:01]} Nd5 {[%emt 0:01:35]} 16. c4 {[%emt 0:00:03]} Nc5 {[%emt 0:00:25]} 17. cxd5 {[%emt 0:00:07]} cxd5 {[%emt 0:00:01]} 18. N3d4 {[%emt 0:02:44]} Bc8 {[%emt 0:00:05]} 19. Rc1 {[%emt 0:00:54]} Bxf5 {[%emt 0:00:36]} 20. Nxf5 {[%emt 0:00:01]} Bg5 {[%emt 0:00:16]} 21. Qg4 {[%emt 0:00:13]} d2 {[%emt 0:00:14]} 22. Nxg7 {[%emt 0:00:53]} dxe1=Q+ {[%emt 0:00:51]} 23. Rxe1 {[%emt 0:00:00]} f6 {[%emt 0:00:39]} 24. Nf5 {[%emt 0:00:02]} Nd3 {[%emt 0:00:09]} 25. Bd4 {[%emt 0:00:48]} Kh8 {[%emt 0:00:10]} 26. e6 {[%emt 0:00:42]} Qf4 {[%emt 0:00:07]} 27. Qxf4 {[%emt 0:00:01]} Bxf4 {[%emt 0:00:06]} 28. Rd1 {[%emt 0:00:02]} Nc5 {[%emt 0:00:05]} 29. e7 {[%emt 0:00:01]} Rfe8 {[%emt 0:00:15]} 30. Bxf6+ {[%emt 0:00:09]} Kg8 {[%emt 0:00:01]} 31. g3 {[%emt 0:00:00]} Kf7 {[%emt 0:00:00]} 32. Bd4 {[%emt 0:00:02]} Bc7 {[%emt 0:00:05]} 33. Re1 {[%emt 0:00:01]} Nxb3 {[%emt 0:00:04]} 34. Nh6+ {[%emt 0:00:01]} Kg6 {[%emt 0:00:03]} 35. Re6+ {[%emt 0:00:00]} Kh5 {[%emt 0:00:05]} 36. Be3 {[%emt 0:00:11]} d4 {[%emt 0:00:00]} 37. g4+ {[%emt 0:00:04]} Kh4 {[%emt 0:00:01]} 38. f3 {[%emt 0:00:03]} dxe3 {[%emt 0:00:02]} 39. Nf5+ {[%emt 0:00:00]} Kg5 {[%emt 0:00:00]} 40. h4+ {[%emt 0:00:01]} Kf4 {[%emt 0:00:01]} 41. Kg2 {[%emt 0:00:01]} Nd2 {[%emt 0:00:06]} 42. Ng3 {[%emt 0:00:04]} Nxf3 {[%emt 0:00:00]} 43. Re4# {[%emt 0:00:00]} 1-0

[Event "CCT Chessable Masters Place D-II 2024"]
[Site "Online"]
[Date "2024.02.01"]
[Round "1"]
[White "Malakhov, Vladimir"]
[Black "Lysyj, Igor"]
[Result "1/2-1/2"]
[ECO "A07"]
[WhiteElo "2648"]
[BlackElo "2589"]
[Annotator "ChessBase"]
[PlyCount "73"]
[EventDate "2024.01.12"]
[EventType "k.o."]
[EventCountry "NET"]
[SourceTitle "playchess.com"]
[Source "ChessBase"]
[SourceQuality "1"]
[TimeControl "600+2"]

1. Nf3 {[%emt 0:00:09]} Nf6 {[%emt 0:00:04]} 2. g3 {[%emt 0:00:05]} d5 {[%emt 0:00:02]} 3. Bg2 {[%emt 0:00:01]} e6 {[%emt 0:00:01]} 4. O-O {[%emt 0:00:01]} Be7 {[%emt 0:00:01]} 5. d3 {[%emt 0:00:02]} O-O {[%emt 0:00:02]} 6. Nbd2 {[%emt 0:00:01]} Nc6 {[%emt 0:00:03]} 7. d4 {[%emt 0:00:10]} a5 {[%emt 0:00:12]} 8. Re1 {[%emt 0:00:07]} b6 {[%emt 0:00:20]} 9. e4 {[%emt 0:00:15]} dxe4 {[%emt 0:00:04]} 10. Nxe4 {[%emt 0:00:01]} Nxe4 {[%emt 0:00:14]} 11. Rxe4 {[%emt 0:00:02]} Bb7 {[%emt 0:00:00]} 12. Re1 {[%emt 0:00:16]} Bf6 {[%emt 0:00:09]} 13. c3 {[%emt 0:00:05]} Ne7 {[%emt 0:00:10]} 14. h4 {[%emt 0:00:06]} a4 {[%emt 0:00:11]} 15. Bg5 {[%emt 0:00:15]} Bxg5 {[%emt 0:00:10]} 16. hxg5 {[%emt 0:00:01]} Ng6 {[%emt 0:00:08]} 17. Qd2 {[%emt 0:00:11]} Ra5 {[%emt 0:00:11]} 18. b4 {[%emt 0:00:34]} axb3 {[%emt 0:00:03]} 19. axb3 {[%emt 0:00:01]} Bxf3 {[%emt 0:00:17]} 20. Bxf3 {[%emt 0:00:10]} Rxg5 {[%emt 0:00:03]} 21. Bg2 {[%emt 0:00:15]} h5 {[%emt 0:00:23]} 22. Ra8 {[%emt 0:01:21]} Qf6 {[%emt 0:00:06]} 23. Rxf8+ {[%emt 0:00:09]} Nxf8 {[%emt 0:00:02]} 24. d5 {[%emt 0:00:13]} h4 {[%emt 0:00:20]} 25. dxe6 {[%emt 0:00:46]} Nxe6 {[%emt 0:00:04]} 26. Re3 {[%emt 0:00:01]} hxg3 {[%emt 0:00:08]} 27. fxg3 {[%emt 0:00:01]} Re5 {[%emt 0:00:15]} 28. Rd3 {[%emt 0:00:05]} Qg5 {[%emt 0:00:15]} 29. Qf2 {[%emt 0:00:37]} Qc1+ {[%emt 0:00:05]} 30. Bf1 {[%emt 0:00:01]} g6 {[%emt 0:00:08]} 31. Kg2 {[%emt 0:00:16]} Rf5 {[%emt 0:00:20]} 32. Qe2 {[%emt 0:00:01]} Qg5 {[%emt 0:00:09]} 33. Kh2 {[%emt 0:00:06]} Re5 {[%emt 0:00:14]} 34. Qf2 {[%emt 0:00:04]} Rf5 {[%emt 0:00:05]} 35. Qe2 {[%emt 0:00:01]} Re5 {[%emt 0:00:01]} 36. Qf2 {[%emt 0:00:04]} Rf5 {[%emt 0:00:04]} 37. Qe2 {[%emt 0:00:01]} 1/2-1/2

[Event "CCT Chessable Masters Place D-II 2024"]
[Site "Online"]
[Date "2024.02.01"]
[Round "1"]
[White "Bortnyk, Oleksandr"]
[Black "jefferyx"]
[Result "1-0"]
[ECO "B10"]
[WhiteElo "2637"]
[BlackElo "2667"]
[Annotator "ChessBase"]
[PlyCount "89"]
[EventDate "2024.01.12"]
[EventType "k.o."]
[EventCountry "NET"]
[SourceTitle "playchess.com"]
[Source "ChessBase"]
[SourceQuality "1"]
[TimeControl "600+2"]

1. e4 {[%emt 0:00:14]} c6 {[%emt 0:00:04]} 2. c4 {[%emt 0:00:19]} d5 {[%emt 0:00:07]} 3. cxd5 {[%emt 0:00:00]} cxd5 {[%emt 0:00:01]} 4. exd5 {[%emt 0:00:00]} Nf6 {[%emt 0:00:04]} 5. Qa4+ {[%emt 0:00:02]} Nbd7 {[%emt 0:00:04]} 6. Nc3 {[%emt 0:00:01]} g6 {[%emt 0:00:07]} 7. Nf3 {[%emt 0:00:01]} Bg7 {[%emt 0:00:01]} 8. Bc4 {[%emt 0:00:01]} O-O {[%emt 0:00:01]} 9. d3 {[%emt 0:00:00]} a6 {[%emt 0:00:32]} 10. Qa3 {[%emt 0:00:04]} b6 {[%emt 0:00:35]} 11. O-O {[%emt 0:00:06]} Bb7 {[%emt 0:00:01]} 12. Re1 {[%emt 0:00:05]} Re8 {[%emt 0:00:35]} 13. Be3 {[%emt 0:00:01]} b5 {[%emt 0:02:05]} 14. Bb3 {[%emt 0:00:02]} Ng4 {[%emt 0:00:37]} 15. Qb4 {[%emt 0:00:32]} Nxe3 {[%emt 0:00:03]} 16. fxe3 {[%emt 0:00:38]} a5 {[%emt 0:00:30]} 17. Qxb5 {[%emt 0:00:49]} Ba6 {[%emt 0:00:01]} 18. Qc6 {[%emt 0:00:01]} Bxd3 {[%emt 0:00:02]} 19. Ba4 {[%emt 0:00:12]} Ra7 {[%emt 0:01:06]} 20. Nb5 {[%emt 0:00:40]} Bxb5 {[%emt 0:00:03]} 21. Qxb5 {[%emt 0:00:00]} Rf8 {[%emt 0:00:06]} 22. Rac1 {[%emt 0:00:32]} Ne5 {[%emt 0:00:01]} 23. Nd4 {[%emt 0:00:24]} Qd6 {[%emt 0:00:01]} 24. Re2 {[%emt 0:00:46]} Raa8 {[%emt 0:01:59]} 25. Qc5 {[%emt 0:00:20]} Rfb8 {[%emt 0:00:50]} 26. Qxd6 {[%emt 0:00:14]} exd6 {[%emt 0:00:00]} 27. Rc7 {[%emt 0:00:06]} Bf6 {[%emt 0:00:22]} 28. b3 {[%emt 0:00:17]} Bd8 {[%emt 0:00:03]} 29. Rcc2 {[%emt 0:00:06]} Bb6 {[%emt 0:00:01]} 30. h3 {[%emt 0:00:02]} h5 {[%emt 0:00:04]} 31. Kf1 {[%emt 0:00:15]} Kg7 {[%emt 0:00:02]} 32. Nc6 {[%emt 0:00:24]} Re8 {[%emt 0:00:01]} 33. Bb5 {[%emt 0:00:23]} h4 {[%emt 0:00:24]} 34. a4 {[%emt 0:00:06]} Kf6 {[%emt 0:00:11]} 35. b4 {[%emt 0:00:11]} axb4 {[%emt 0:00:04]} 36. Nxb4 {[%emt 0:00:00]} Rh8 {[%emt 0:00:10]} 37. Nc6 {[%emt 0:00:10]} Rh5 {[%emt 0:00:01]} 38. e4 {[%emt 0:00:27]} Kg7 {[%emt 0:00:02]} 39. Ke1 {[%emt 0:00:21]} Rg5 {[%emt 0:00:08]} 40. Kd1 {[%emt 0:00:02]} Rg3 {[%emt 0:00:11]} 41. Nxe5 {[%emt 0:00:06]} dxe5 {[%emt 0:00:00]} 42. d6 {[%emt 0:00:06]} Ra3 {[%emt 0:00:02]} 43. Red2 {[%emt 0:00:06]} Be3 {[%emt 0:00:01]} 44. Rd5 {[%emt 0:00:04]} Bd4 {[%emt 0:00:04]} 45. d7 {[%emt 0:00:08]} 1-0

[Event "CCT Chessable Masters Place D-II 2024"]
[Site "Online"]
[Date "2024.02.01"]
[Round "1"]
[White "shimastream"]
[Black "Antipov, Mikhail Al."]
[Result "1-0"]
[ECO "A38"]
[WhiteElo "2630"]
[BlackElo "2604"]
[Annotator "ChessBase"]
[PlyCount "105"]
[EventDate "2024.01.12"]
[EventType "k.o."]
[EventCountry "NET"]
[SourceTitle "playchess.com"]
[Source "ChessBase"]
[SourceQuality "1"]
[TimeControl "600+2"]

1. Nf3 {[%emt 0:00:08]} Nf6 {[%emt 0:02:39]} 2. c4 {[%emt 0:00:04]} c5 {[%emt 0:00:04]} 3. g3 {[%emt 0:00:04]} g6 {[%emt 0:00:06]} 4. Bg2 {[%emt 0:00:04]} Bg7 {[%emt 0:00:03]} 5. Nc3 {[%emt 0:00:08]} Nc6 {[%emt 0:00:10]} 6. d4 {[%emt 0:00:13]} cxd4 {[%emt 0:00:03]} 7. Nxd4 {[%emt 0:00:02]} Ng4 {[%emt 0:00:29]} 8. e3 {[%emt 0:00:23]} Nge5 {[%emt 0:00:08]} 9. Qe2 {[%emt 0:01:08]} O-O {[%emt 0:00:21]} 10. O-O {[%emt 0:00:04]} d6 {[%emt 0:00:08]} 11. Nxc6 {[%emt 0:00:28]} Nxc6 {[%emt 0:00:02]} 12. Bd2 {[%emt 0:00:03]} Be6 {[%emt 0:00:08]} 13. Rac1 {[%emt 0:00:05]} Qd7 {[%emt 0:00:03]} 14. b3 {[%emt 0:00:08]} Bh3 {[%emt 0:00:04]} 15. Rfd1 {[%emt 0:00:09]} Bxg2 {[%emt 0:00:05]} 16. Kxg2 {[%emt 0:00:02]} Bxc3 {[%emt 0:00:17]} 17. Bxc3 {[%emt 0:00:04]} Qe6 {[%emt 0:00:02]} 18. Rd5 {[%emt 0:00:33]} Rac8 {[%emt 0:00:05]} 19. Rcd1 {[%emt 0:00:05]} b6 {[%emt 0:00:06]} 20. h4 {[%emt 0:00:05]} f6 {[%emt 0:00:04]} 21. e4 {[%emt 0:00:18]} Ne5 {[%emt 0:00:11]} 22. Re1 {[%emt 0:00:17]} h5 {[%emt 0:00:16]} 23. a4 {[%emt 0:00:24]} Kh7 {[%emt 0:00:20]} 24. a5 {[%emt 0:00:05]} Rb8 {[%emt 0:00:03]} 25. axb6 {[%emt 0:00:22]} Rxb6 {[%emt 0:00:02]} 26. b4 {[%emt 0:00:05]} Rc8 {[%emt 0:00:09]} 27. c5 {[%emt 0:00:07]} Rbc6 {[%emt 0:00:03]} 28. Bd4 {[%emt 0:00:09]} dxc5 {[%emt 0:00:24]} 29. bxc5 {[%emt 0:00:06]} Nd7 {[%emt 0:00:19]} 30. Qe3 {[%emt 0:00:10]} R6c7 {[%emt 0:00:15]} 31. Ra1 {[%emt 0:00:09]} Nb8 {[%emt 0:00:03]} 32. Qf3 {[%emt 0:00:10]} Nc6 {[%emt 0:00:04]} 33. Bc3 {[%emt 0:00:03]} Qg4 {[%emt 0:00:09]} 34. Qd3 {[%emt 0:00:05]} Qe6 {[%emt 0:00:04]} 35. Qe2 {[%emt 0:00:15]} Kg7 {[%emt 0:00:04]} 36. Rad1 {[%emt 0:00:06]} Kf7 {[%emt 0:00:03]} 37. Qe3 {[%emt 0:00:05]} Kg7 {[%emt 0:00:06]} 38. e5 {[%emt 0:00:26]} f5 {[%emt 0:00:03]} 39. Rd6 {[%emt 0:00:13]} Qg8 {[%emt 0:00:43]} 40. e6+ {[%emt 0:00:15]} Kh7 {[%emt 0:00:03]} 41. Rd7 {[%emt 0:00:04]} Qe8 {[%emt 0:00:18]} 42. Ba1 {[%emt 0:00:09]} Qg8 {[%emt 0:00:05]} 43. Kh2 {[%emt 0:00:06]} Nb8 {[%emt 0:00:05]} 44. Rxc7 {[%emt 0:00:22]} Rxc7 {[%emt 0:00:02]} 45. Qe5 {[%emt 0:00:03]} Rc8 {[%emt 0:00:13]} 46. Rd7 {[%emt 0:00:09]} Nc6 {[%emt 0:00:03]} 47. Qd5 {[%emt 0:00:15]} a5 {[%emt 0:00:04]} 48. Rb7 {[%emt 0:00:26]} a4 {[%emt 0:00:12]} 49. Rb6 {[%emt 0:00:06]} Qe8 {[%emt 0:00:06]} 50. Qd7 {[%emt 0:00:08]} Na5 {[%emt 0:00:15]} 51. c6 {[%emt 0:00:09]} a3 {[%emt 0:00:31]} 52. c7 {[%emt 0:00:08]} Qf8 {[%emt 0:00:03]} 53. Rb8 {[%emt 0:00:06]} 1-0